Workbook

Sheet 11 февраля
J1: Утверждаю:
J2: Директор школы | M2: Н.П.Семенов
F4: МЕНЮ ДНЯ | L4: ='[1]8'!$B$1 -> 11 | M4: февраль | N4: 2026 год.
E6: МБОУ"ПАВЛОВСКАЯ СОШ"
A7: 8
A8: ПРИЕМ | B8: РАЗДЕЛ | C8: № РЕЦ. | D8: БЛЮДО | I8: ВЫХОД | J8: ЦЕНА | K8: КАЛОРИЙ | L8: БЕЛКИ | M8: ЖИРЫ | N8: УГЛЕВО
A9: ПИЩИ | I9: г | K9: НОСТЬ | N9: ДЫ
B10: ОВЗ | D10: 7-11 лет
A11: ЗАВТРАК | C11: 93 | D11: ='[2]8'!$B$7 -> СУП МОЛОЧНЫЙС МАКАР,ИЗД, | I11: 200 | J11: ='[2]8'!$BK$7 -> 16.92 | K11: 147.6 | L11: 6.05 | M11: 5.6 | N11: 18.25
C12: 221№324 | D12: ='[2]8'!$B$8 -> КИСЕЛЬ | I12: 200 | J12: ='[2]8'!$BK$8 -> 4.35 | K12: 76 | L12: 0 | M12: 0 | N12: 20
C13: №8 | D13: ='[2]8'!$B$9 -> БАТОН | I13: 30 | J13: ='[2]8'!$BK$9 -> 3.51 | K13: 85.7 | L13: 2.4 | M13: 0.8 | N13: 16.7
D14: ИТОГО | I14: =SUM(I11:I13) -> 430 | J14: =SUM(J11:J13) -> 24.79 | K14: =SUM(K11:K13) -> 309.3 | L14: =SUM(L11:L13) -> 8.45 | M14: =SUM(M11:M13) -> 6.4 | N14: =SUM(N11:N13) -> 54.95
D15: от 12 и старше лет
C16: 93 | D16: ='[2]8'!$B$21 -> СУП МОЛОЧНЫЙС МАКАР,ИЗД, | I16: 200 | J16: ='[2]8'!$BK$21 -> 16.92 | K16: 147.6 | L16: 6.05 | M16: 5.6 | N16: 18.25
C17: 221№324 | D17: ='[2]8'!$B$22 -> КИСЕЛЬ | I17: 200 | J17: ='[2]8'!$BK$22 -> 4.35 | K17: 76 | L17: 0 | M17: 0 | N17: 20
C18: №8 | D18: ='[2]8'!$B$23 -> БАТОН | I18: 30 | J18: ='[2]8'!$BK$23 -> 3.51 | K18: 85.7 | L18: 2.4 | M18: 0.8 | N18: 16.7
D19: ИТОГО | I19: =SUM(I16:I18) -> 430 | J19: =SUM(J16:J18) -> 24.79 | K19: =SUM(K16:K18) -> 309.3 | L19: =SUM(L16:L18) -> 8.45 | M19: =SUM(M16:M18) -> 6.4 | N19: =SUM(N16:N18) -> 54.95
B20: 5-11 класс
A21: ОБЕД | D21: от 12 и старше лет
C22: №22 | D22: ='[1]8'!$B$21 -> САЛАТ ВИТАМИННЫЙ | I22: 100 | J22: ='[1]8'!$BK$21 -> 8.82 | K22: 88.3 | L22: 1.5 | M22: 4.5 | N22: 27
C23: 83№63(1) | D23: ='[1]8'!$B$22 -> СУП КАТРТОФЕЛЬНЫЙ С РИСОВОЙ КРУПОЙ | I23: 250 | J23: ='[1]8'!$BK$22 -> 3.60 | K23: 113 | L23: 2.6 | M23: 2.1 | N23: 19.3
C24: 180№135(1) | D24: ='[1]8'!$B$23 -> БИТОЧКИ РУБ,ИЗ МЯСА ПТИЦЫ ПАР, | I24: 120 | J24: ='[1]8'!$BK$23 -> 32.64 | K24: 245 | L24: 16.3 | M24: 15.58 | N24: 8.9
C25: 112№227(2) | D25: ='[1]8'!$B$24 -> МАКАРОНЫ ОТВАРНЫЕ | I25: 180 | J25: ='[1]8'!$BK$24 -> 9.32 | K25: 233 | L25: 6.5 | M25: 4.4 | N25: 40
C26: 207№310 | D26: ='[1]8'!$B$25 -> КОМПОТ ИЗ СУХОФРУКТОВ | I26: 200 | J26: ='[1]8'!$BK$25 -> 4.81 | K26: 123 | L26: 0.5 | M26: 0.1 | N26: 30.9
D27: ='[1]8'!$B$26 -> ХЛЕБ | I27: 50 | J27: ='[1]8'!$BK$26 -> 3.25 | K27: 108.6 | L27: 3.96 | M27: 0.72 | N27: 1.38
C28: №7 | D28: ='[3]8'!$B$27 -> 0 | J28: ='[3]8'!$BK$27 -> 0.00 | K28: 108.6 | L28: 3.96 | M28: 0.72 | N28: 1.38
D29: ='[3]6'!$B$28 -> 0 | J29: ='[3]3'!$BK$28 -> 0.00
D30: ИТОГО | I30: =SUM(I22:I29) -> 900 | J30: =SUM(J22:J29) -> 62.44 | K30: =SUM(K21:K29) -> 1019.5 | L30: =SUM(L21:L29) -> 35.32 | M30: =SUM(M21:M29) -> 28.12 | N30: =SUM(N21:N29) -> 128.86
D31: Составил Агеева Г.Н. | L31: Повар Фролова Л.Н.
